{"text_format":"1","workbook":"xlsx","n_sheets":3,"sheets":["Relació de despeses","Relació d'ingressos ","despeses i ingressos"],"not_rendered":{"charts":0,"images":2,"macros":1,"external_links":0,"defined_names":8,"comments":3,"pivot_tables":0},"unopened":[],"bounds":{"document_bytes":16777216,"sheet_cells":100000,"rows_first":2000,"rows_last":500,"rows_between":2000,"halvings":0,"cell_chars":16384,"cell_head_chars":4096},"cells_cut":0,"cells_raw":0,"read":"whole","date_system":"1900"}

{"sheet":"Relació de despeses","index":0,"n_rows":144,"n_cols":12,"rows_kept":144,"cut":false,"hidden":false,"merged":[[93,0,94,9],[98,0,98,1],[102,0,102,10],[107,0,107,10],[104,0,104,10],[105,0,105,10],[106,0,106,10],[82,0,82,12],[17,11,17,12],[39,11,39,12],[38,11,38,12],[18,0,18,12],[19,11,19,12],[20,11,20,12],[21,11,21,12],[32,11,32,12],[31,11,31,12],[9,0,9,12],[10,0,10,1],[0,0,0,12],[4,0,4,1],[17,0,17,6],[2,2,2,3],[3,2,3,3],[4,2,4,3],[12,11,12,12],[2,0,2,1],[3,0,3,1],[7,1,8,1],[7,0,8,0],[6,0,6,4],[7,11,7,12],[8,11,8,12],[11,0,11,12],[7,3,7,4],[2,4,2,6],[3,4,3,6],[4,4,4,6],[7,2,8,2],[13,11,13,12],[2,9,2,10],[3,9,3,10],[4,9,4,10],[14,11,14,12],[81,11,81,12],[68,11,68,12],[67,11,67,12],[76,0,76,12],[81,0,81,6],[77,11,77,12],[80,11,80,12],[51,11,51,12],[79,11,79,12],[16,11,16,12],[70,0,70,12],[75,0,75,6],[69,0,69,6],[64,0,64,12],[53,0,53,6],[35,11,35,12],[34,11,34,12],[73,11,73,12],[72,11,72,12],[69,11,69,12],[47,11,47,12],[48,0,48,12],[22,11,22,12],[23,0,23,6],[23,11,23,12],[24,0,24,12],[25,11,25,12],[26,11,26,12],[27,11,27,12],[33,11,33,12],[35,0,35,6],[30,0,30,12],[43,11,43,12],[41,11,41,12],[40,11,40,12],[28,11,28,12],[29,0,29,6],[29,11,29,12],[44,11,44,12],[47,0,47,6],[37,11,37,12],[46,11,46,12],[45,11,45,12],[55,0,55,1],[63,0,63,1],[108,0,108,10],[109,0,109,10],[110,0,110,10],[111,0,111,10],[112,0,112,10],[113,0,113,10],[114,0,114,10],[61,0,61,6],[56,0,56,12],[75,11,75,12],[74,11,74,12],[88,0,88,2],[88,3,88,6],[88,11,88,12],[83,11,83,12],[85,11,85,12],[86,11,86,12],[87,0,87,6],[87,11,87,12],[65,11,65,12],[66,11,66,12],[92,0,92,10],[115,0,115,10],[116,0,116,10],[131,0,131,10],[132,0,132,10],[134,0,134,10],[135,0,135,10],[136,0,136,10],[137,0,137,10],[117,0,117,10],[118,0,118,10],[120,0,120,10],[121,0,121,10],[122,0,122,10],[123,0,123,10],[124,0,124,10],[125,0,125,10],[126,0,126,10],[138,0,138,10],[139,0,139,10],[140,0,140,10],[141,0,141,10],[142,0,142,10],[143,0,143,10],[89,0,89,5],[89,11,89,12],[36,0,36,12],[42,0,42,12],[71,11,71,12],[41,0,41,6],[49,11,49,12],[61,11,61,12],[60,11,60,12],[59,11,59,12],[58,11,58,12],[57,11,57,12],[53,11,53,12],[52,11,52,12],[50,11,50,12],[127,0,127,10],[129,0,129,10],[130,0,130,10]]}
["Relació classificada de totes les despeses realitzades per a l'execució de l'activitat  subvencionada"]
[]
["Persona física/jurídica beneficiària:         ",null,null,null,"Import total del projecte:",null,null,null,null,null,null,"euros"]
["Codi de subvenció:",null,null,null,"Import de la subvenció atorgada:",null,null,null,null,null,null,"euros"]
["Nom del projecte subvencionat:",null,null,null,"Període d'execució del projecte subvencionat:",null,null,null,null,null,null,"a"]
[]
["Despeses del projecte/activitat/servei subvencionat (*)"]
["Núm. d'ordre (0)","número de document: justificants despesa personal (1), factura o rebut/tiquet(2)","Concepte de la factura / \ndocument probatori equivalent","Emissor/a de la factura",null,"Data d'emissió","Import total de la factura","Percentatge d'iva deduït o el de després d'aplicar la Prorrata","Import després de deduïr l'IVA corresponent","Import imputable (dedicat) al projecte (3)","Import imputable a la subvenció municipal (4)","Observacions"]
[null,null,null,"NIF","Nom","dd/mm/aaaa","euros","%","euros","euros","euros"]
["DESPESES DIRECTES (Aquelles que s'identifiquen directament amb el projecte)"]
["Submodalitat AC1"]
["AC1.D1.  Honoraris dels formadors/es externs"]
[]
[]
[]
[]
[]
[null,null,null,null,null,null,null,null,"Subtotal D.1",{"$f":"SUM(J13:J17)","v":0},{"$f":"SUM(K13:K17)","v":0}]
["AC1.D2. Cost salarial de les persones participants corresponent a les hores de formació (Max 40% subvenció) "]
[]
[]
[]
[]
[null,null,null,null,null,null,null,null,"Subtotal D.2",{"$f":"SUM(J20:J23)","v":0},{"$f":"SUM(K20:K23)","v":0}]
["AC1.D3.  Lloguer de béns immobles vinculats directament a la realització de la formació"]
[]
[]
[]
[]
[null,null,null,null,null,null,null,null,"Subtotal D.3",{"$f":"SUM(J26:J29)","v":0},{"$f":"SUM(K26:K29)","v":0}]
["AC1.D4. Adquisició de materials i béns consumibles necessaris per la realització de la formació"]
[]
[]
[]
[]
[null,null,null,null,null,null,null,null,"Subtotal D.4",{"$f":"SUM(J32:J35)","v":0},{"$f":"SUM(K32:K35)","v":0}]
["AC1.D5. Transport – missatgeria vinculades directament a la realització de la formació"]
[]
[]
[]
[]
[null,null,null,null,null,null,null,null,"Subtotal D.5",{"$f":"SUM(J38:J41)","v":0},{"$f":"SUM(K38:K41)","v":0}]
["AC1.D6.  Assegurances"]
[]
[]
[]
[]
[null,null,null,null,null,null,null,null,"Subtotal D.6",{"$f":"SUM(J44:J47)","v":0},{"$f":"SUM(K44:K47)","v":0}]
["AC1.D7.  Viatges i desplaçaments imputables a les activitats del projecte  (Max 10% subvenció) "]
[]
[]
[]
[]
[null,null,null,null,null,null,null,null,"Subtotal D.7",{"$f":"SUM(J50:J53)","v":0},{"$f":"SUM(K50:K53)","v":0}]
[]
["Submodalitat AC2"]
["AC2.D1.  Despeses de matriculació en accions formatives externes"]
[]
[]
[]
[]
[null,null,null,null,null,null,null,null,"Subtotal D.8",{"$f":"SUM(J58:J61)","v":0},{"$f":"SUM(K58:K61)","v":0}]
[]
["Submodalitat AC3"]
["AC3.D1.  Despeses d’ajut econòmic –beca- de la persona estudiant en pràctiques"]
[]
[]
[]
[]
[null,null,null,null,null,null,null,null,"Subtotal D.9",{"$f":"SUM(J66:J69)","v":0},{"$f":"SUM(K66:K69)","v":0}]
["AC3.D2.  Despeses de seguretat social de l'alumne/a en pràctiques"]
[]
[]
[]
[]
[null,null,null,null,null,null,null,null,"Subtotal D.10",{"$f":"SUM(J72:J75)","v":0},{"$f":"SUM(K72:K75)","v":0}]
["AC3.D3. Despeses del contracte laboral de la formació dual, modalitat contracte de formació i aprenentatge"]
[]
[]
[]
[]
[null,null,null,null,null,null,null,null,"Subtotal D.11",{"$f":"SUM(J78:J81)","v":0},{"$f":"SUM(K78:K81)","v":0}]
["AC3.D4.  Despeses de gestió associades a la tramitació del Conveni de Cooperació Educativa o l’Acord Formatiu de Col·laboració"]
[]
[]
[]
[]
[null,null,null,null,null,null,null,null,"Subtotal D.12",{"$f":"SUM(J84:J87)","v":0},{"$f":"SUM(K84:K87)","v":0}]
["TOTAL DESPESES DIRECTES ",null,null,null,null,null,null,null,"TOTAL DESPESES DIRECTES",{"$f":"+J18+J36+J42+J48+J54+J62+J70+J76+J82+J88+J30+J24","v":0},{"$f":"+K18+K36+K42+K48+K54+K62+K70+K76+K82+K88+K30+K24","v":0}]
["TOTAL DESPESES",null,null,null,null,null,null,null,"TOTAL",{"$f":"+J89","v":0},{"$f":"+K89","v":0}]
[]
[]
["El Sr./Sra. (indicar el nom i cognoms de la persona representant que signa la justificació)  amb DNI/NIE (indicar el núm. DNI) en qualitat de persona física beneficiària o representant legal de la persona jurídica beneficiària (indicar nom i cognoms) amb NIF (indicar núm DNI)."]
["CERTIFICA que les despeses imputades al projecte/activitat/servei subvencionat han estat efectivament efectuades; que custodiarà la documentació suport que ho acredita; que  aquesta documentació es troba a disposició de l'Ajuntament de Barcelona o dels altres ens municipals en els arxius d'aquesta Entitat, durant un període mínim de 4 anys a comptar des de la data de presentació de la present justificació."]
[]
[]
[]
[]
["Població i data: ",null,null,"Signatura i segell (en cas de registre físic)"]
[]
[]
["Notes:"]
["(*) S'han de relacionar totes les despeses del projecte/activitat/servei subvencionat. En el cas que el nombre de files de cada concepte sigui insuficient podeu inserir línies dins del mateix concepte seleccionant una cel·la verda i fent clic sobre el botó d'inserir línia."]
["(0) El número d'ordre ha de ser correlatiu començant per D.1.1, D.1.2, D.1.3, D.2.4, etc."]
["(1) Respecte a les despeses de recursos humans, pot ser subvencionable el cost total salarial mensual, que correspon a la suma de la retribució bruta que apareix a la nòmina del treballador/a més la quota de l'empresa a la Seg. Social. Les despeses de personal es justifiquen amb la nòmina del treballador/a acompanyada dels corresponents TC1 i TC2 de la TGSS i el model 111 de l'IRPF."]
["(2) En el cas que el document justificatiu de la resta de despeses, no sigui una factura, sinó un altre document probatori equivalent, com un rebut o justificant (com per dietes o transport públic), indiqueu-lo en la columna \"observacions\"."]
["(3) En el cas que un justificant inclogui conceptes que no tenen a veure amb el projecte/activitat/servei per al qual s'ha atorgat la subvenció, aquí només s'ha d'indicar la part que realment s'ha dedicat al projecte."]
["(4) En aquesta columna s'ha d'indicar l'import total o parcial de la factura  que s'imputa a la subvenció rebuda de l'Ajuntament de Barcelona. El total imputat, en aquesta columna, ha de ser igual  a l'import de la subvenció rebuda."]
["Modalitat Ac: Formació: Innovació i formació per a la millora de la gestió i l’obertura de noves línies de negoci (per les 3 submodalitats)"]
["1.  La quantia de la subvenció atorgada no superarà el 80% de la despesa total del projecte a subvencionar. "]
["2.  Les sol·licituds poden contenir una proposta de projecte de formació que contingui les tres submodalitats (Ac1, Ac2 i Ac3), o bé tant sols una submodalitat. "]
["3.  En qualsevol cas, l’import màxim de subvenció, tant si la sol•licitud conté una, dos o tres submodalitats, serà de 4.500 euros. L’import màxim permès per la modalitat Ac3 (pràctiques de persones estudiants) és de 3.500 euros."]
["5.  No són imputables en aquesta submodalitat cap despesa indirecta de les detallades en l’apartat 13.3 de les bases reguladores."]
["6. Els salaris percebuts per les persones contractades en el marc del projecte subvencionat no siguin inferiors a 1.088,56 euros bruts mensuals (13.062,72 euros bruts en còmput anual) en el cas de jornades completes, o la part proporcional en el cas de jornades parcials (punt 7 bases reguladores: requisits dels projectes)."]
["7. En cap cas es consideraran despeses subvencionables:"]
["- Els impostos indirectes quan siguin susceptibles de recuperació o compensació, ni els impostos sobre la renda."]
["- Les despeses d'inversió, incloses les adquisicions de béns mobles."]
["- Les despeses realitzades amb data anterior a l'inici del projecte i data posterior a la finalització del projecte."]
["- Altres despeses que s'indiquin a la convocatòria."]
[]
["Submodalitat Ac1: Formació grupal per a persones sòcies, treballadores i voluntàries de l’entitat"]
["1.  Les despeses de cost salarial de les persones participants en la formació grupal es limiten a un màxim d'un 40% de l'import de la subvenció."]
["2.  Les despeses de viatges i desplaçament imputables a les activitats del projecte subvencionable es limiten a un màxim d'un 10% de l'import de la subvenció."]
["3.   Durada mínima de la formació grupal s'estableix en 10 hores per a cada persona participant i el mínim s'estableix en 10 persones. Serà exigible el full de signatura de les persones participants en l’acció grupal."]
["4.   Caldrà justificar  la contribució directa de les accions en la millora del projecte empresarial."]
["5.   Es podran organitzar sessions de formació compartides per diferents entitats d’economia social i solidària, per tal d’optimitzar recursos i temps destinat a la realització de les accions, i afavorir la intercooperació."]
["6. Els materials produïts: de difusió, estudis, informes o materials didàctics utilitzats, etc. en el cas de tractar-se de despesa elegible de la subvenció, hauran de tenir llicència Creative Commons -Compartir Igual- (share alike) i no podrà tenir la condició –Sense Obres "]
["Derivades- (no derivate Works)."]
[]
["Submodalitat Ac2: Despeses de matriculació de les persones de l’entitat en accions formatives externes"]
["1.  La formació a subvencionar ha de tenir una durada mínima de 150 hores i/o un cost mínim de 300 € per a cada participant."]
["2.  Serà exigible el document acreditatiu de l’entitat formadora de la participació de la persona/es participants."]
["3.   Caldrà justificar  la contribució directa de les accions en la millora del projecte empresarial."]
[]
["Submodalitat Ac3: Pràctiques e les persones estudiants universitàries i de formació dual de FP en entitats i empreses de l’ESS"]
["1.  L’import màxim permès per la modalitat Ac3 (pràctiques de persones estudiants) és de 3.500 €."]
["2.  Serà exigible el conveni de Cooperació Educativa amb la universitat respectiva, o bé l’Acord Formatiu de Col·laboració (en el cas de beca) o el Contracte de formació i aprenentatge amb el Centre de Formació Professional corresponent."]
["3.  Els/les alumnes beneficiaris/àries han de ser persones residents a la ciutat o matriculats/des en un universitats o centres de formació de la ciutat."]
["4.  El programa de pràctiques dels alumnes ha de ser d’una durada mínima de 400 hores. "]
["5.  Només pot presentar-se una sol·licitud per un lloc de pràctiques per entitat sol·licitant. "]
["6.  Caldrà donar d’alta a l’alumne/a en la seguretat social com a alumne/a en pràctiques (tant per pràctiques curriculars com extracurriculars universitàries com per als alumnes de FP en formació dual – modalitat beca-)."]
["7.  El cost brut hora de la remuneració de l’alumne/a en pràctiques universitàries no podrá ser inferior a de 6€/hora."]
["8. Caldrà remunerar l’alumne/a segons la modalitat d’FP dual escollida com a mínim d’acord amb la normativa específica que estableix el Departament d’Educació de la Generalitat de Catalunya."]
["9. La formalització de les pràctiques, el desenvolupament del contingut, avaluació i seguiment s’ajustarà a la normativa vigent del Departament d’Educació de la Generalitat de Catalunya i d’altres normes que li siguin d’aplicació."]

{"sheet":"Relació d'ingressos ","index":1,"n_rows":80,"n_cols":10,"rows_kept":80,"cut":false,"hidden":false,"merged":[[69,0,69,9],[70,0,71,9],[75,1,75,2],[64,6,64,9],[59,6,59,9],[66,6,66,9],[60,6,60,9],[61,6,61,9],[62,6,62,9],[63,6,63,9],[66,0,66,3],[65,0,65,3],[65,6,65,9],[58,6,58,9],[56,0,56,3],[50,0,50,3],[53,6,53,9],[52,6,52,9],[41,6,41,9],[40,6,40,9],[51,0,51,9],[57,0,57,9],[56,6,56,9],[43,6,43,9],[42,6,42,9],[0,0,0,9],[9,0,9,9],[15,0,15,9],[21,0,21,9],[7,6,8,9],[10,6,10,9],[11,6,11,9],[7,0,8,0],[12,6,12,9],[13,6,13,9],[3,2,3,3],[2,2,2,3],[6,0,6,3],[4,2,4,3],[7,2,7,3],[7,1,8,1],[14,0,14,3],[44,0,44,3],[27,0,27,9],[33,0,33,9],[39,0,39,9],[38,0,38,3],[32,0,32,3],[14,6,14,9],[20,6,20,9],[29,6,29,9],[28,6,28,9],[38,6,38,9],[37,6,37,9],[30,6,30,9],[32,6,32,9],[31,6,31,9],[26,0,26,3],[50,6,50,9],[49,6,49,9],[20,0,20,3],[45,0,45,9],[47,6,47,9],[46,6,46,9],[26,6,26,9],[25,6,25,9],[24,6,24,9],[23,6,23,9],[22,6,22,9],[36,6,36,9],[35,6,35,9],[48,6,48,9],[44,6,44,9],[19,6,19,9],[18,6,18,9],[17,6,17,9],[16,6,16,9],[34,6,34,9]]}
["Detall de tots els ingressos obtinguts i aportacions del propi beneficiari per a l'execució de l'activitat subvencionada"]
[]
[null,"Nom de la persona física/jurídica beneficiària:        ",{"$f":"'Relació de despeses'!C3:C3","v":0},null,"Import total del projecte :",null,null,{"$f":"IF(+'Relació de despeses'!J3=\"\",\"\",+'Relació de despeses'!J3)","v":""},"euros"]
[null,"Codi de subvenció",{"$f":"'Relació de despeses'!C4:C4","v":0},null,"Import de la subvenció atorgada:",null,null,{"$f":"IF(+'Relació de despeses'!J4=\"\",\"\",+'Relació de despeses'!J4)","v":""},"euros"]
[null,"Nom del projecte subvencionat",{"$f":"'Relació de despeses'!C5:C5","v":0},null,"Període d'execució del projecte subvencionat:",null,null,{"$f":"IF(+'Relació de despeses'!J5=\"\",\"\",+'Relació de despeses'!J5)","v":""},"a",{"$f":"IF(+'Relació de despeses'!M5=\"\",\"\",+'Relació de despeses'!M5)","v":""}]
[]
["Ingressos del projecte/activitat/servei subvencionat"]
["Núm. d'ordre (0)","Concepte de l'ingrés","Emissor/a de l'ingrés",null,"Data de cobrament\n(dd/mm/aaaa)","Import","Observacions"]
[null,null,"NIF","Nom","(1)","euros"]
["A. Subvenció municipal "]
[{"$f":"IF(B11<>\"\",1,\"\")","v":""}]
[]
[]
[{"$f":"IF(B14<>\"\",MAX($A$10:A13)+1,\"\")","v":""}]
[null,null,null,null,"Subtotal A",{"$f":"SUM(F11:F14)","v":0}]
["B. Subvencions d'altres administracions"]
[{"$f":"IF(B17<>\"\",MAX($A$10:A16)+1,\"\")","v":""}]
[{"$f":"IF(B18<>\"\",MAX($A$10:A17)+1,\"\")","v":""}]
[{"$f":"IF(B19<>\"\",MAX($A$10:A18)+1,\"\")","v":""}]
[{"$f":"IF(B20<>\"\",MAX($A$10:A19)+1,\"\")","v":""}]
[null,null,null,null,"Subtotal B",{"$f":"SUM(F17:F20)","v":0}]
["C. Subvencions d'ens privats"]
[{"$f":"IF(B23<>\"\",MAX($A$10:A22)+1,\"\")","v":""}]
[{"$f":"IF(B24<>\"\",MAX($A$10:A23)+1,\"\")","v":""}]
[{"$f":"IF(B25<>\"\",MAX($A$10:A24)+1,\"\")","v":""}]
[{"$f":"IF(B26<>\"\",MAX($A$10:A25)+1,\"\")","v":""}]
[null,null,null,null,"Subtotal C",{"$f":"SUM(F23:F26)","v":0}]
["D. Recursos propis de l'entitat aplicats al projecte"]
[{"$f":"IF(B29<>\"\",MAX($A$10:A28)+1,\"\")","v":""}]
[{"$f":"IF(B30<>\"\",MAX($A$10:A29)+1,\"\")","v":""}]
[{"$f":"IF(B31<>\"\",MAX($A$10:A30)+1,\"\")","v":""}]
[{"$f":"IF(B32<>\"\",MAX($A$10:A31)+1,\"\")","v":""}]
[null,null,null,null,"Subtotal D",{"$f":"SUM(F29:F32)","v":0}]
["E. Taquillatge"]
[{"$f":"IF(B35<>\"\",MAX($A$10:A34)+1,\"\")","v":""}]
[{"$f":"IF(B36<>\"\",MAX($A$10:A35)+1,\"\")","v":""}]
[{"$f":"IF(B37<>\"\",MAX($A$10:A36)+1,\"\")","v":""}]
[{"$f":"IF(B38<>\"\",MAX($A$10:A37)+1,\"\")","v":""}]
[null,null,null,null,"Subtotal E",{"$f":"SUM(F35:F38)","v":0}]
["F. Quotes d'inscripció"]
[{"$f":"IF(B41<>\"\",MAX($A$10:A40)+1,\"\")","v":""}]
[{"$f":"IF(B42<>\"\",MAX($A$10:A41)+1,\"\")","v":""}]
[{"$f":"IF(B43<>\"\",MAX($A$10:A42)+1,\"\")","v":""}]
[{"$f":"IF(B44<>\"\",MAX($A$10:A43)+1,\"\")","v":""}]
[null,null,null,null,"Subtotal F",{"$f":"SUM(F41:F44)","v":0}]
["G. Venda de Productes"]
[{"$f":"IF(B47<>\"\",MAX($A$10:A46)+1,\"\")","v":""}]
[{"$f":"IF(B48<>\"\",MAX($A$10:A47)+1,\"\")","v":""}]
[{"$f":"IF(B49<>\"\",MAX($A$10:A48)+1,\"\")","v":""}]
[{"$f":"IF(B50<>\"\",MAX($A$10:A49)+1,\"\")","v":""}]
[null,null,null,null,"Subtotal G",{"$f":"SUM(F47:F50)","v":0}]
["H. Publicitat i/o Esponsorització"]
[{"$f":"IF(B53<>\"\",MAX($A$10:A52)+1,\"\")","v":""}]
[{"$f":"IF(B54<>\"\",MAX($A$10:A53)+1,\"\")","v":""}]
[{"$f":"IF(B55<>\"\",MAX($A$26:A54)+1,\"\")","v":""}]
[{"$f":"IF(B56<>\"\",MAX($A$26:A55)+1,\"\")","v":""}]
[null,null,null,null,"Subtotal H",{"$f":"SUM(F53:F56)","v":0}]
["I. Altres ingressos"]
[{"$f":"IF(B59<>\"\",MAX($A$10:A58)+1,\"\")","v":""}]
[{"$f":"IF(B60<>\"\",MAX($A$10:A59)+1,\"\")","v":""}]
[{"$f":"IF(B61<>\"\",MAX($A$10:A60)+1,\"\")","v":""}]
[{"$f":"IF(B62<>\"\",MAX($A$10:A61)+1,\"\")","v":""}]
[{"$f":"IF(B63<>\"\",MAX($A$10:A62)+1,\"\")","v":""}]
[{"$f":"IF(B64<>\"\",MAX($A$10:A63)+1,\"\")","v":""}]
[{"$f":"IF(B65<>\"\",MAX($A$10:A64)+1,\"\")","v":""}]
[null,null,null,null,"Subtotal I",{"$f":"SUM(F59:F65)","v":0}]
["Total INGRESSOS",null,null,null,"TOTAL",{"$f":"+F15+F21+F27+F33+F39+F45+F51+F57+F66","v":0}]
[]
[]
["El Sr./Sra. (indicar el nom i cognoms de la persona representant que signa la justificació)  amb DNI/NIE (indicar el núm. DNI) en qualitat de persona física beneficiària o representant legal de la persona jurídica beneficiària (indicar nom i cognoms) amb NIF (indicar núm DNI)."]
["CERTIFICA que els ingressos imputats al projecte/activitat/servei subvencionat han estat efectivament ingressats; que custodiarà la documentació suport que ho acredita; que  aquesta documentació es troba a disposició de l'Ajuntament de Barcelona o dels altres ens municipals en els arxius d'aquesta Entitat, durant un període mínim de 4 anys a comptar des de la data de presentació de la present justificació."]
[]
[]
[]
[]
[null,"Població i data: ",null,null,"Signatura i segell (en cas de registre físic)"]
[]
[null,"Nota:"]
[null,"(0) El número d'ordre ha de ser correlatiu començant pel número 1"]
[null,"(1) En cas que l'ingrés estigui pendent cobrament, indicar \"P. Cobrament\" "]

{"sheet":"despeses i ingressos","index":2,"n_rows":63,"n_cols":11,"rows_kept":63,"cut":false,"hidden":false,"merged":[[6,0,6,1],[6,2,6,3],[9,0,9,1],[9,6,9,7],[10,0,11,1],[10,2,11,2],[10,3,11,3],[10,6,11,7],[4,0,4,1],[4,2,4,3],[4,5,4,6],[5,0,5,1],[5,2,5,3],[5,5,5,6],[42,0,42,10],[43,0,43,10],[10,8,11,8],[10,9,11,9],[44,0,44,10],[37,0,37,10],[38,0,38,10],[39,0,39,10],[40,0,40,10],[41,0,41,10],[23,6,23,7],[24,6,24,7],[24,8,24,9],[30,0,30,10],[34,1,34,2],[31,0,32,9]]}
[]
[]
["Estat de les despeses realitzades i dels ingressos obtinguts per a l'execució de l'activitat subvencionada (*)"]
[]
["Nom de la persona física/jurídica beneficiària:         ",null,{"$f":"'Relació d''ingressos '!C3:D3","v":0},null,null,"Import total del projecte:",null,{"$f":"'Relació d''ingressos '!H3","v":""},"euros"]
["Codi de subvenció:",null,{"$f":"'Relació d''ingressos '!C4:D4","v":0},null,null,"Import de la subvenció atorgada:",null,{"$f":"'Relació d''ingressos '!H4","v":""},"euros"]
["Nom del projecte subvencionat:",null,{"$f":"'Relació d''ingressos '!C5:D5","v":0},null,null,"Període d'execució del projecte subvencionat:",null,null,{"$f":"'Relació d''ingressos '!H5","v":""},"a",{"$f":"'Relació d''ingressos '!J5","v":""}]
[]
["SUBVENCIONS PER A LA PROMOCIÓ I REFORÇ DE L'ECONOMIA SOCIAL I SOLIDÀRIA 2020"]
["DESPESES PREVISTES",null,"import en euros",null,null,null,"INGRESSOS PREVISTOS",null,"import en euros"]
["Despeses directes \n(aquelles que s'identifiquen directament amb el projecte)",null,"Previsió inicial o reformulada ja aprovada (1)","Despeses realitzades (2)","Diferència\n",null,"Ingressos previstos",null,"Previsió inicial (1)","Ingressos obtinguts (3)"]
[null,null,null,null,"(2-1)"]
["Ac","D1.  Honoraris dels formadors/es externs",null,{"$f":"'Relació de despeses'!J18","v":0},{"$f":"+C13-D13","v":0},null,"A.","Subvenció municipal (import sol·licitat a la instància/atorgat)",null,{"$f":"'Relació d''ingressos '!F15","v":0},{"$f":"+IF(J13<0,\"No s'admeten valors negatius\",IF(J13<>'Relació d''ingressos '!F15,\"No coincideix amb import pestanya anterior\",\"\"))","v":""}]
[null,"D2. Cost salarial de les persones participants corresponent a les hores de formació (Max 40% subvenció) ",null,{"$f":"'Relació de despeses'!J24","v":0},{"$f":"+C14-D14","v":0},null,"B.","Subvencions d'altres administracions",null,{"$f":"'Relació d''ingressos '!F21","v":0},{"$f":"+IF(J14<0,\"No s'admeten valors negatius\",\"\")","v":""}]
[null,"D3.  Lloguer de béns immobles vinculats directament a la realització de la formació",null,{"$f":"'Relació de despeses'!J30","v":0},0,null,"C.","Subvencions d'ens privats",null,{"$f":"'Relació d''ingressos '!F27","v":0},""]
[null,"D4. Adquisició de materials i béns consumibles necessaris per la realització de la formació",null,{"$f":"'Relació de despeses'!J36","v":0},0,null,"D.","Recursos propis de l'entitat aplicats al projecte",null,{"$f":"'Relació d''ingressos '!F33","v":0},""]
[null,"D5. Transport – missatgeria vinculades directament a la realització de la formació",null,{"$f":"'Relació de despeses'!J42","v":0},0,null,"E.","Taquillatge",null,{"$f":"'Relació d''ingressos '!F39","v":0},""]
[null,"D6.  Assegurances",null,{"$f":"'Relació de despeses'!J48","v":0},0,null,"F.","Quotes d'inscripció",null,{"$f":"'Relació d''ingressos '!F45","v":0},""]
[null,"D7.  Viatges i desplaçaments imputables a les activitats del projecte  (Max 10% subvenció) ",null,{"$f":"'Relació de despeses'!J54","v":0},0,null,"G.","Venda de Productes",null,{"$f":"'Relació d''ingressos '!F51","v":0},""]
[null,"D8.  Despeses de matriculació en accions formatives externes",null,{"$f":"'Relació de despeses'!J62","v":0},0,null,"H","Publicitat i/o Esponsorització",null,{"$f":"'Relació d''ingressos '!F57","v":0},""]
[null,"D9.  Despeses d’ajut econòmic –beca- de la persona estudiant en pràctiques",null,{"$f":"'Relació de despeses'!J70","v":0},0,null,"I.","Altres ingressos",null,{"$f":"'Relació d''ingressos '!F66","v":0},""]
[null,"D10.  Despeses de seguretat social de l'alumne/a en pràctiques",null,{"$f":"'Relació de despeses'!J76","v":0},0,null,null,"Total Ingressos",{"$f":"SUM(I13:I21)","v":0},{"$f":"SUM(J13:J21)","v":0}]
[null,"D11. Despeses del contracte laboral de la formació dual, modalitat contracte de formació i aprenentatge",null,{"$f":"'Relació de despeses'!J82","v":0},0]
[null,"D12  Despeses de gestió associades a la tramitació del Conveni de Cooperació Educativa o l’Acord Formatiu de Col·laboració",null,{"$f":"'Relació de despeses'!J88","v":0},0,null,"Ingressos menys despeses ",null,{"$f":"C26-I22","v":0},{"$f":"D26-J22","v":0}]
[null,"Total Despeses Directes   ",{"$f":"SUM(C13:C24)","v":0},{"$f":"SUM(D13:D24)","v":0},{"$f":"SUM(E13:E24)","v":0},null,"Desviació de Despeses (4)",null,"Desviació d'ingressos (4)"]
[null,"Total Despeses ",{"$f":"+C25","v":0},{"$f":"+D25","v":0},{"$f":"+E25","v":0},null,"Import"," % ","Import","%"]
[null,null,null,null,"import en euros",null,{"$f":"D26","v":0},{"$f":"D26-C26","v":0},{"$f":"J22","v":0},{"$f":"J22-I22","v":0}]
[null,null,null,null,null,null,null,null,"% subvencionat inicialment o després de reformulació (5)",{"$f":"I13/I22","v":{"$error":"#DIV/0!"}}]
[null,null,null,null,null,null,null,null,"% subvencionat després de justificació (6)",{"$f":"J13/J22","v":{"$error":"#DIV/0!"}}]
[]
["El Sr./Sra. (indicar el nom i cognoms de la persona representant que signa la justificació)  amb DNI/NIE (indicar el núm. DNI) en qualitat de persona física beneficiària o representant legal de la persona jurídica beneficiària (indicar nom i cognoms) amb NIF (indicar núm DNI)."]
["CERTIFICA que els ingressos imputats al projecte/activitat/servei subvencionat han estat efectivament ingressats; que custodiarà la documentació suport que ho acredita; que  aquesta documentació es troba a disposició de l'Ajuntament de Barcelona o dels altres ens municipals en els arxius d'aquesta Entitat, durant un període mínim de 4 anys a comptar des de la data de presentació de la present justificació."]
[]
[]
[null,"Població i data: ",null,null,"Signatura i segell (en cas de registre físic)"]
[]
["Notes:"]
["(*) Les columnes ombrejades en color  s'aniran emplenant automàticament a partir de les dades introduïdes en els documents de despeses -detall i ingressos-detall. Per tant, no imprimiu aquest full fins haver emplenat els altres."]
["(1) Previsió inicial o reformulació ja aprovada= S'han d'indicar la previsió inicial de despeses i d'ingressos segons allò que es va indicar al projecte original en el \"pla de viabilitat econòmica del projecte - pressupost general\" . En cas que ja s'hagi aprovat una reformulació, s'han d'indicar les quantitats reformulades. "]
["(2) Despeses reals = Cost real total del projecte subvencionat. Automàticament s'introduiran els subtotals de les despeses relacionades al full Despeses-detall."]
["(3) Ingresos reals = Total d'ingressos obtinguts per a la realització del projecte subvencionat. Automàticament s'introduiran els subtotals dels ingressos relacionats al full Ingressos-detall."]
["(4) Desviació: En el cas de les despeses, la desviació és la diferència entre despeses reals i la previsió inicial de despeses; i en el cas d'ingressos, la diferència entre els ingressos reals i la previsió inicial d'ingressos. "]
["(5) % finançament municipal = percentatge que suposen les subvencions municipals (A) respecte del  total d'ingressos del projecte subvencionat."]
["(6) El % de la desviació final de despeses es calcula dividint l'import resultant de despeses reals - despeses previstes, entre el total de despeses previstes i de la mateixa manera els ingressos, En cas d'existir una desviació sempre s'ha de motivar."]
[]
[]
[]
[]
[]
[]
[]
[]
[]
[]
[]
[]
[]
[]
[]
[]
[]
[]
[null,null,0]